bitfinex/quotes_ETHUSD_20241104
["timestamp","ask_amount","ask_price","bid_price","bid_amount"]
[1730699557241,4.05517,2466.0,2465.7,1.2951298]
[1730699558565,4.05517,2466.0,2465.7,0.8013]
[1730699560840,4.05517,2466.0,2465.8,0.1759845]
[1730699561140,4.05517,2466.0,2465.7,0.8013]
[1730699561354,4.05517,2466.0,2465.9,0.17584799]
[1730699561504,4.05517,2466.0,2465.8,0.1759845]
[1730699562004,4.05517,2466.0,2465.9,0.17584799]
[1730699562659,4.05517,2466.0,2465.7,0.8013]
[1730699562859,4.05517,2466.0,2465.9,0.17584799]
[1730699563068,4.05531,2465.9,2465.8,0.1759845]
[1730699563274,4.81143,2465.7,2465.4,0.8013]
[1730699563557,8.8672,2465.7,2465.2,0.8013]
[1730699563726,4.81143,2465.7,2465.3,0.891434]
[1730699563923,4.81143,2465.7,2465.2,4.85772]
[1730699564355,0.7557,2465.7,2465.2,0.8013]
[1730699564561,5.71658193,2465.6,2465.2,0.8013]
[1730699564731,5.79779778,2465.6,2465.2,0.8013]
[1730699565768,4.05606,2465.5,2465.0,0.8013]
[1730699566107,8.11214,2465.5,2465.0,1.67188888]
[1730699567370,4.05606,2465.5,2465.0,5.72866888]
[1730699567524,4.05606,2465.5,2465.0,5.42502115]
[1730699568261,4.05615,2465.4,2465.0,1.36824115]
[1730699568471,4.05615,2465.4,2465.0,1.67190525]
[1730699568847,4.05606,2465.5,2465.1,0.97856053]
[1730699570360,4.13702585,2465.6,2465.1,0.97856053]
[1730699570865,4.13702585,2465.6,2465.1,5.03516053]
[1730699571874,0.08121585,2465.6,2465.1,0.97856053]
[1730699572177,4.056,2465.5,2465.1,0.97856053]
[1730699572882,4.056,2465.5,2465.1,5.03518053]
[1730699573487,8.11207,2465.5,2465.1,0.97856053]
[1730699573684,4.056,2465.5,2465.1,0.97856053]
[1730699573987,4.056,2465.5,2465.1,1.28228699]
[1730699574145,4.056,2465.5,2465.1,0.97856053]
[1730699574346,4.056,2465.5,2465.1,1.28228699]
[1730699575788,4.056,2465.5,2465.2,0.17683881]
[1730699576542,8.11208,2465.5,2465.2,0.17683881]
[1730699576745,4.056,2465.5,2465.2,0.17683881]
[1730699580506,4.05614,2465.4,2465.2,0.17683881]
[1730699580659,8.11211,2465.5,2465.2,0.17683881]
[1730699580986,4.056,2465.5,2465.2,0.17683881]
[1730699584412,5.79764778,2465.6,2465.2,0.17683881]
[1730699586017,4.05599,2465.5,2465.2,0.17683881]
[1730699586805,8.11205,2465.5,2465.2,0.17683881]
[1730699587920,4.0563,2465.3,2465.2,0.17683881]
[1730699588233,8.698799,2465.3,2465.2,0.17683881]
[1730699588382,8.698799,2465.3,2464.1,2.12662382]
[1730699588383,1.66062193,2464.6,2464.3,0.8013]
[1730699589887,1.66062193,2464.4,2464.3,0.8013]
[1730699590090,4.05797,2464.3,2463.8,4.90917477]
[1730699590288,1.66062193,2464.2,2463.9,1.45646945]
[1730699590612,1.66062193,2464.2,2464.0,0.17263417]
[1730699593326,5.71873193,2464.2,2464.0,0.17263417]
[1730699594291,5.79994778,2464.2,2464.0,0.17263417]
[1730699594675,5.79994778,2464.2,2463.7,4.05893]
[1730699594880,5.79994778,2464.2,2464.1,0.17261113]
[1730699595098,6.86188956,2464.2,2463.7,4.05893]
[1730699595420,5.79994778,2464.2,2463.6,4.8124]
[1730699595588,5.79994778,2464.2,2463.8,0.1730213]
[1730699595788,5.79994778,2464.2,2463.6,4.8124]
[1730699596098,5.79994778,2464.2,2463.9,0.17288457]
[1730699596307,5.79994778,2464.2,2463.6,4.8124]
[1730699596494,5.79994778,2464.2,2464.0,0.17274784]
[1730699596695,4.05827,2464.1,2463.6,4.8124]
[1730699597415,4.05827,2464.1,2463.6,8.8714]
[1730699597577,4.05827,2464.1,2463.6,4.8124]
[1730699599944,1.74183778,2464.2,2463.6,4.8124]
[1730699600159,4.13918585,2464.3,2463.7,4.62123705]
[1730699600506,4.05811,2464.2,2463.7,4.62123705]
[1730699600746,4.05811,2464.2,2463.7,0.56240705]
[1730699601050,3.0,2464.5,2463.7,0.56240705]
[1730699601051,4.05772,2464.5,2464.0,0.55]
[1730699601216,4.05781,2464.4,2464.0,0.55]
[1730699602120,4.05772,2464.5,2464.0,0.55]
[1730699602121,4.05772,2464.5,2464.0,4.60834]
[1730699602321,4.05772,2464.5,2464.1,0.08115589]
[1730699602832,4.05762,2464.5,2464.1,0.08115589]
[1730699603046,4.05762,2464.5,2464.0,1.492023]
[1730699603544,8.11538,2464.5,2464.0,1.492023]
[1730699603857,8.11537,2464.5,2464.0,1.492023]
[1730699604145,2.42212193,2464.6,2464.2,0.7849]
[1730699604146,4.05746,2464.6,2464.2,0.7849]
[1730699604822,4.05762,2464.5,2464.2,0.7849]
[1730699605017,8.11534,2464.5,2464.2,0.7849]
[1730699605219,4.05762,2464.5,2464.2,0.7849]
[1730699605626,4.05762,2464.5,2464.3,0.17246849]
[1730699605935,4.05762,2464.5,2464.2,0.7849]
[1730699606254,4.05762,2464.5,2464.3,0.17246849]
[1730699606422,4.05762,2464.5,2464.2,0.7849]
[1730699606607,4.05762,2464.5,2464.4,0.17233181]
[1730699606810,4.05762,2464.5,2464.2,0.7849]
[1730699607010,4.05762,2464.5,2464.4,0.17233181]
[1730699607345,4.05762,2464.5,2464.2,0.7849]
[1730699607532,4.05762,2464.5,2464.4,0.17233181]
[1730699607716,4.05762,2464.5,2464.3,0.17246849]
[1730699607916,4.05762,2464.5,2464.4,0.17233181]
[1730699608330,4.05762,2464.5,2464.2,0.7849]
[1730699608511,4.05762,2464.5,2464.4,0.17233181]
[1730699609011,4.05762,2464.5,2464.2,0.7849]
[1730699609211,4.05762,2464.5,2464.4,0.17233181]
[1730699609428,4.05762,2464.5,2464.2,0.7849]
[1730699609744,4.05762,2464.5,2464.4,0.17233181]
[1730699610257,4.05762,2464.5,2464.2,0.7849]
[1730699610547,4.05762,2464.5,2464.4,0.17233181]
[1730699610753,8.11483,2464.7,2464.3,0.17246849]
[1730699610922,0.7626,2464.8,2464.4,0.17233181]
[1730699610923,4.81976,2464.8,2464.4,0.17233181]
[1730699611115,4.90097585,2464.8,2464.4,0.17233181]
[1730699611839,4.90097585,2464.8,2464.2,0.7849]
[1730699612041,6.56159778,2464.8,2464.5,0.17213259]
[1730699612223,0.95615978,2464.7,2464.0,1.3349]
[1730699612428,4.05795,2464.3,2464.0,0.7849]
[1730699613333,4.05795,2464.3,2463.8,0.7849]
[1730699613520,4.05819,2464.2,2463.8,0.7849]
[1730699615862,4.82091,2464.1,2463.7,0.48124]
[1730699616175,4.82091,2464.1,2463.7,0.55]
[1730699618168,8.87862,2464.3,2463.8,4.05865]
[1730699619140,4.05813,2464.2,2463.7,4.60893]
[1730699619531,4.13934585,2464.2,2463.7,4.60893]
[1730699619828,4.13934585,2464.2,2463.6,4.84391]
[1730699620335,0.08121585,2464.2,2463.6,4.84391]
[1730699620537,4.05829,2464.1,2463.6,4.84391]
[1730699620744,4.05829,2464.1,2463.7,0.17324613]
[1730699621134,8.11666,2464.1,2463.7,0.17324613]
[1730699621340,4.81179,2464.1,2463.7,0.17324613]
[1730699621849,4.0586,2463.9,2463.7,0.17324613]
[1730699622063,4.05877,2463.8,2463.7,0.17324613]
[1730699622272,4.05877,2463.8,2463.4,0.8013]
[1730699622482,4.05877,2463.8,2463.7,0.17326979]
[1730699622680,4.05877,2463.8,2463.4,4.86072]
[1730699622985,4.81227,2463.8,2463.7,0.17326979]
[1730699623155,4.05895,2463.7,2463.3,0.55]
[1730699623354,4.14016585,2463.7,2463.3,0.55]
[1730699623546,4.14016585,2463.7,2463.4,0.17368009]
[1730699624183,4.05895,2463.7,2463.4,0.17368009]
[1730699624339,4.05895,2463.7,2463.2,4.86094]
[1730699624791,4.05895,2463.7,2463.3,0.17381688]
[1730699624994,4.05895,2463.7,2463.2,4.86094]
[1730699625210,4.14043585,2463.6,2463.2,0.8013]
[1730699625488,4.14043585,2463.6,2463.3,0.17381688]
[1730699625648,4.81284,2463.5,2463.1,0.08118667]
[1730699625845,4.81284,2463.5,2463.4,0.17368009]
[1730699626090,4.81284,2463.5,2463.1,0.08118667]
[1730699626284,4.81284,2463.5,2463.4,0.17372559]
[1730699626484,4.81284,2463.5,2463.1,0.08118667]
[1730699626789,4.81284,2463.5,2463.0,0.8013]
[1730699626960,4.81284,2463.5,2462.8,4.86162]
[1730699626961,4.05967,2463.3,2462.8,4.86162]
[1730699627165,4.05967,2463.3,2463.1,0.17414073]
[1730699627362,4.14088585,2463.3,2462.8,4.86162]
[1730699627866,4.14088585,2463.3,2462.9,0.17441439]
[1730699628193,4.14088585,2463.3,2462.9,4.23465439]
[1730699628194,4.14082585,2463.3,2462.9,4.23465439]
[1730699628394,4.14082585,2463.3,2462.9,0.17441439]
[1730699630456,4.81333,2463.2,2462.7,4.12142991]
[1730699630650,4.81333,2463.2,2463.0,0.17430221]
[1730699630850,4.81333,2463.2,2462.7,0.06090991]
[1730699630851,4.89454585,2463.2,2462.7,0.06090991]
[1730699631094,4.81333,2463.2,2463.1,0.17416539]
[1730699631254,4.81333,2463.2,2462.7,0.14211284]
[1730699631454,0.7535,2463.2,2463.1,0.17416539]
[1730699631690,0.7535,2463.2,2462.8,4.06036]
[1730699632004,1.66062193,2463.4,2462.9,4.06019]
[1730699632005,4.89420585,2463.4,2462.9,4.06019]
[1730699632310,4.89420585,2463.4,2463.0,0.17430221]
[1730699632966,7.05915,2463.6,2463.0,1.05679756]
[1730699633273,7.05915,2463.6,2463.1,4.05984]
[1730699633274,7.14036585,2463.6,2463.1,4.05984]
[1730699633478,7.14036585,2463.6,2463.1,4.23409168]
[1730699634394,10.26847164,2463.6,2463.1,4.23409168]
[1730699634695,4.05928,2463.5,2463.1,4.23409168]
[1730699635659,4.14049585,2463.5,2463.1,4.23409168]
[1730699636373,4.14049585,2463.5,2463.1,0.17425168]
[1730699637769,0.08121585,2463.5,2463.1,4.23414168]
[1730699638109,3.08121585,2463.6,2463.1,5.14369785]
[1730699638464,7.14034585,2463.6,2463.1,5.14369785]
[1730699638665,7.14034585,2463.6,2463.1,9.20353785]
[1730699638861,7.14034585,2463.6,2463.1,5.14364785]
[1730699639704,7.14034585,2463.6,2463.1,5.14363785]
[1730699640266,3.08121585,2463.6,2463.1,5.14363785]
[1730699640578,4.05877,2463.8,2463.3,0.8013]
[1730699640776,4.05894,2463.7,2463.4,0.1738299]
[1730699641587,4.81222,2463.9,2463.4,0.1738299]
[1730699641588,0.7535,2463.9,2463.4,0.25501567]
[1730699641765,4.05853,2464.0,2463.6,0.8013]
[1730699641968,4.05868,2463.9,2463.7,0.17341391]
[1730699642476,4.05853,2464.0,2463.5,0.55]
[1730699642674,8.11706,2464.0,2463.8,0.17326674]
[1730699642908,4.05853,2464.0,2463.5,4.60924]
[1730699643207,4.05853,2464.0,2463.5,5.58935531]
[1730699643504,0.08121585,2463.9,2463.6,0.17349187]
[1730699643672,0.83471585,2463.9,2463.6,0.17349187]
[1730699643866,4.0589,2463.8,2463.4,1.13244314]
[1730699644089,4.0589,2463.8,2463.7,0.17335512]
[1730699644290,0.83471585,2463.9,2463.4,4.86072]
[1730699644491,8.19828585,2464.0,2463.7,0.17335322]
[1730699644802,4.05853,2464.0,2463.4,4.94189949]
[1730699645017,4.13974585,2464.0,2463.4,4.94189949]
[1730699645316,4.13974585,2464.0,2463.5,0.17362674]
[1730699645815,4.05853,2464.0,2463.5,0.17362674]
[1730699645968,4.05853,2464.0,2463.5,4.91045156]
[1730699646272,0.08121585,2463.9,2463.5,0.85124156]
[1730699646472,4.13974585,2464.0,2463.5,0.85124156]
[1730699647922,8.19829585,2464.0,2463.5,0.85124156]
[1730699648068,4.05853,2464.0,2463.5,0.85124156]
[1730699648269,4.13974585,2464.0,2463.5,0.85124156]
[1730699648602,4.13974585,2464.0,2463.5,4.91046156]
[1730699649614,4.13974585,2464.0,2463.5,0.85124156]
[1730699649912,4.05869,2463.9,2463.5,0.17362674]
[1730699650274,4.13990585,2463.9,2463.5,0.17362674]
[1730699653576,0.08121585,2463.9,2463.5,0.17362674]
[1730699653777,4.13974585,2464.0,2463.5,4.23275674]
[1730699654677,4.13974585,2464.0,2463.6,0.8013]
[1730699654873,0.08121585,2464.0,2463.6,0.97476721]
[1730699655075,4.05821,2464.2,2463.6,5.03372721]
[1730699655279,4.13956585,2464.1,2463.6,5.03372721]
[1730699655725,4.05853,2464.0,2463.6,0.97476721]
[1730699657316,0.08121585,2464.1,2463.6,0.97476721]
[1730699657517,4.13942585,2464.2,2463.7,4.05893]
[1730699657821,4.13940585,2464.2,2463.7,4.23225762]
[1730699657995,8.19763585,2464.2,2463.8,0.8013]
[1730699658194,8.11642,2464.2,2463.9,0.17305319]
[1730699658685,4.05819,2464.2,2463.9,0.17305319]
[1730699659024,4.13940585,2464.2,2463.9,0.17305319]
[1730699659383,4.05819,2464.2,2463.9,0.17305319]
[1730699660285,0.08121585,2464.3,2463.9,0.17305319]
[1730699660513,4.13911585,2464.4,2463.9,1.08223751]
[1730699660701,4.05794,2464.3,2463.9,0.17305319]
[1730699661027,4.13915585,2464.3,2463.9,0.17305319]
[1730699662224,0.08121585,2464.3,2463.9,0.17305319]
[1730699662395,4.85921,2464.1,2463.9,0.17305319]
[1730699662716,6.45226097,2464.0,2463.6,0.8013]
[1730699662918,4.05877,2463.8,2463.6,0.8013]
[1730699663117,4.05877,2463.8,2463.4,0.30404318]
[1730699663327,4.05877,2463.8,2463.4,1.10534318]
[1730699664306,5.06826345,2463.8,2463.4,1.10534318]
[1730699665628,5.06826345,2463.8,2463.5,0.17356797]
[1730699666309,9.12713345,2463.8,2463.5,0.17356797]
[1730699666508,0.7974,2463.7,2463.5,0.17356797]
[1730699667605,4.0591,2463.6,2463.5,0.17356797]
[1730699667800,5.05969793,2463.6,2463.5,0.17356797]
[1730699668842,1.00059793,2463.6,2463.5,0.17356797]
[1730699669142,4.93763585,2463.7,2463.5,0.17356797]
[1730699669640,0.87861585,2463.7,2463.5,0.17356797]
[1730699669840,4.85633,2463.7,2463.5,0.17356797]
[1730699670055,0.87861585,2463.7,2463.5,0.17356797]
[1730699670350,4.0591,2463.6,2463.5,0.17356797]
[1730699671388,0.87861585,2463.7,2463.5,0.17356797]
[1730699671563,0.7974,2463.7,2463.5,0.17356797]
[1730699671751,0.7974,2463.7,2463.3,0.30420246]
[1730699671752,4.85634,2463.7,2463.3,0.30420246]
[1730699671955,0.7974,2463.7,2463.6,0.17346628]
[1730699672155,4.05877,2463.8,2463.3,4.14076338]
[1730699672493,7.05853,2464.0,2463.5,4.86053]
[1730699672789,4.05864,2463.9,2463.5,0.8013]
[1730699672987,4.05864,2463.9,2463.6,0.17346438]
[1730699673165,4.13985585,2463.9,2463.6,0.17346438]
[1730699674667,0.08121585,2463.9,2463.6,0.17346438]
[1730699675094,7.13974585,2464.0,2463.6,0.17346438]
[1730699676254,4.05869,2463.9,2463.6,0.17346438]
[1730699676991,4.13990585,2463.9,2463.6,0.17346438]
[1730699677691,7.05853,2464.0,2463.6,0.17346438]
[1730699677889,11.19833585,2464.0,2463.6,0.17346438]
[1730699678098,4.05869,2463.9,2463.6,0.17346438]
[1730699679363,4.13990585,2463.9,2463.6,0.17346438]
[1730699680168,0.08121585,2463.9,2463.6,0.17346438]
[1730699680498,4.05877,2463.8,2463.6,0.17346438]
[1730699682302,4.13981585,2463.9,2463.6,0.17346438]
[1730699683495,4.0586,2463.9,2463.6,0.17346438]
[1730699683794,0.7974,2464.1,2463.6,4.79766914]
[1730699683795,4.85568,2464.1,2463.6,4.79766914]
[1730699684105,4.93689585,2464.1,2463.6,4.79766914]
[1730699684265,0.87861585,2464.1,2463.6,0.73864914]
[1730699684458,4.05844,2464.0,2463.6,0.73864914]
[1730699686666,8.11696,2464.0,2463.6,0.73864914]
[1730699686866,4.05844,2464.0,2463.6,0.73864914]
[1730699690302,0.87861585,2464.1,2463.6,0.73864914]
[1730699690489,4.05846,2464.0,2463.6,0.73864914]
[1730699690689,0.08121585,2464.1,2463.6,0.73864914]
[1730699690690,4.13948585,2464.1,2463.7,0.7736]
[1730699691010,4.13948585,2464.1,2463.7,0.9469191]
[1730699691368,4.05846,2464.0,2463.7,0.9469191]
[1730699692215,0.08121585,2464.1,2463.7,5.0057691]
[1730699692390,4.13942585,2464.2,2463.7,5.56286449]
[1730699692706,0.6355721,2464.3,2463.8,4.05875]
[1730699693007,4.6935221,2464.3,2463.9,0.7736]
[1730699693167,4.6935221,2464.3,2463.9,0.94664562]
[1730699693368,4.77473795,2464.3,2463.9,0.94664562]
[1730699696639,0.71678795,2464.3,2463.9,0.94664562]
[1730699696936,0.71678795,2464.3,2464.0,0.7736]
[1730699697096,0.71678795,2464.3,2464.0,0.9465089]
[1730699697296,0.08121585,2464.3,2464.0,0.9465089]
[1730699698004,8.11573,2464.4,2464.0,0.9465089]
[1730699698306,4.13920585,2464.3,2464.0,0.9465089]
[1730699699819,4.05814,2464.2,2464.0,0.9465089]
[1730699700000,4.13948585,2464.1,2464.0,0.1729089]
[1730699700205,5.8024077,2464.1,2464.0,0.1729089]
[1730699700449,0.7884,2463.9,2463.5,0.7736]
[1730699700604,4.05882,2463.8,2463.6,0.30427966]
[1730699700804,4.14003585,2463.8,2463.5,0.95182629]
[1730699701204,4.05897,2463.7,2463.5,0.95182629]
[1730699701485,4.05882,2463.8,2463.5,0.17822629]
[1730699701609,4.14003585,2463.8,2463.5,0.17822629]
[1730699702110,4.14003585,2463.8,2463.3,4.83318]
[1730699702304,4.14003585,2463.8,2463.4,1.18689368]
[1730699702523,4.14003585,2463.8,2463.4,0.4825177]
[1730699702733,4.14003585,2463.8,2463.4,0.17823727]
[1730699703242,0.08121585,2463.8,2463.5,5.38285]
[1730699703441,3.08121585,2464.1,2463.6,4.14017414]
[1730699703644,3.0,2464.1,2463.7,4.05887]
[1730699703850,0.08121585,2464.2,2463.9,5.72144185]
[1730699704056,4.13891585,2464.5,2464.0,4.05834]
[1730699704356,1.42385737,2464.6,2464.1,0.85476288]
[1730699704512,0.63545737,2464.6,2464.2,4.05801]
[1730699705265,0.63545737,2464.6,2464.1,1.02536847]
[1730699705266,4.69290737,2464.6,2464.1,1.02536847]
[1730699705486,4.69290737,2464.6,2464.1,5.08362847]
[1730699706127,4.05745,2464.6,2464.1,5.08362847]
[1730699706331,7.13858585,2464.7,2464.2,4.05809]
[1730699707873,4.05745,2464.6,2464.1,1.02536847]
[1730699708220,4.13852585,2464.7,2464.2,4.56644485]
[1730699708458,4.05745,2464.6,2464.2,0.50836485]
[1730699710440,4.05723,2464.8,2464.3,4.05793]
[1730699710639,4.13844585,2464.8,2464.3,4.22459136]
[1730699710958,8.19570585,2464.8,2464.3,5.37253201]
[1730699711125,8.11449,2464.8,2464.3,5.37253201]
[1730699711479,4.13851585,2464.7,2464.3,1.31460201]
[1730699711660,0.08121585,2464.7,2464.3,1.31460201]
[1730699711827,4.13844585,2464.8,2464.3,1.31460201]
[1730699712029,4.13844585,2464.8,2464.4,0.58810569]
[1730699712361,4.13844585,2464.8,2464.5,0.16638801]
[1730699712657,8.19565585,2464.8,2464.5,0.16638801]
[1730699712872,4.05721,2464.8,2464.5,0.16638801]
[1730699713084,4.13842585,2464.8,2464.5,0.16638801]
[1730699713446,8.19568585,2464.8,2464.5,0.16638801]
[1730699713648,8.11447,2464.8,2464.5,0.16638801]
[1730699714670,4.13850585,2464.7,2464.5,0.16638801]
[1730699715480,4.13850585,2464.7,2464.3,1.14794065]
[1730699715716,4.03850585,2464.7,2464.6,0.16625136]
[1730699716387,4.03850585,2464.7,2464.3,1.14794065]
[1730699716582,4.03850585,2464.7,2464.6,0.16625136]
[1730699716774,4.03850585,2464.7,2464.2,0.55]
[1730699716971,4.03850585,2464.7,2464.6,0.16625136]
[1730699717176,4.03850585,2464.7,2464.3,0.72964503]
[1730699717353,4.05721,2464.8,2464.6,0.16625136]
[1730699717544,4.13842585,2464.8,2464.3,0.72964503]
[1730699717747,4.13842585,2464.8,2464.7,0.16611472]
[1730699717968,4.13842585,2464.8,2464.3,4.78755503]
[1730699718161,4.13842585,2464.8,2464.7,0.16611472]
[1730699718359,4.0573,2464.7,2464.4,1.2689555]
[1730699721595,4.13837585,2464.8,2464.4,1.2689555]
[1730699722583,4.05729,2464.7,2464.4,1.2689555]
[1730699723008,4.13833585,2464.8,2464.4,1.2689555]
[1730699723702,4.13833585,2464.8,2464.5,0.53268655]
[1730699724271,4.13833585,2464.8,2464.4,0.7902]
[1730699725608,4.13833585,2464.8,2464.5,0.16636525]
[1730699726111,4.0573,2464.7,2464.5,0.16636525]
[1730699726281,4.05745,2464.6,2464.5,0.16636525]
[1730699726473,4.13866585,2464.6,2464.5,0.16636525]
[1730699726708,4.0577,2464.5,2464.2,0.7697]
[1730699727494,4.13899585,2464.4,2464.2,0.7697]
[1730699727700,4.13899585,2464.4,2463.9,0.7697]
[1730699727701,4.62910544,2464.4,2463.9,0.7697]
[1730699727908,4.62910544,2464.4,2463.7,4.82859]
[1730699727909,4.05822,2464.2,2463.7,4.82859]
[1730699728085,4.82022,2464.2,2463.7,4.82859]
[1730699728285,0.7621,2464.2,2463.7,6.49151185]
[1730699728700,4.82025,2464.2,2463.7,6.49151185]
[1730699731220,4.82025,2464.2,2463.7,2.43262185]
[1730699731221,4.90146585,2464.2,2463.7,2.43262185]
[1730699731585,4.05834,2464.1,2463.7,1.82475919]
[1730699732614,4.82025,2464.2,2463.7,5.9647781]
[1730699733834,4.05815,2464.2,2463.7,5.9647781]
[1730699734326,8.11636,2464.2,2463.7,5.9647781]
[1730699734533,4.05815,2464.2,2463.7,5.9647781]
[1730699734942,4.05815,2464.2,2463.8,1.00237381]
[1730699738649,4.05815,2464.2,2463.8,5.06112381]
[1730699740542,4.05815,2464.2,2463.9,0.16719111]
[1730699741246,8.11639,2464.2,2463.9,0.16719111]
[1730699741454,4.05815,2464.2,2463.9,0.16719111]
[1730699741810,0.08121585,2464.1,2463.9,0.16719111]
[1730699744827,0.08121585,2464.3,2463.9,0.7670076]
[1730699745034,4.13924585,2464.3,2463.9,0.7670076]
[1730699751059,4.13924585,2464.3,2464.0,0.8013]
[1730699751439,4.13924585,2464.3,2464.1,0.16691768]
[1730699754476,8.19731585,2464.3,2464.1,0.16691768]
[1730699754649,8.1161,2464.3,2464.1,0.16691768]
[1730699758388,8.11611,2464.3,2464.1,0.16691768]
[1730699759586,4.05803,2464.3,2464.1,0.16691768]
[1730699759771,8.19727585,2464.3,2464.1,0.16691768]
[1730699759959,4.05811,2464.2,2464.1,0.16691768]
[1730699760855,4.05811,2464.2,2463.8,0.8013]
[1730699761060,4.13932585,2464.2,2464.1,0.16691198]
[1730699761255,4.13932585,2464.2,2463.8,0.8013]
[1730699761462,4.13932585,2464.2,2464.1,0.16691198]
[1730699761685,4.13932585,2464.2,2463.8,0.8013]
[1730699762180,4.13932585,2464.2,2463.9,0.1671873]
[1730699765577,4.05846,2464.0,2463.6,0.16760322]
[1730699765767,4.13967585,2464.0,2463.6,0.16760322]
[1730699766478,0.08121585,2464.0,2463.7,0.8013]
[1730699766793,4.05821,2464.2,2463.8,0.16732972]
[1730699767092,4.05821,2464.2,2463.7,4.86014]
[1730699767296,4.05821,2464.2,2463.9,0.16721576]
[1730699767452,3.08121585,2464.3,2463.8,0.16735249]
[1730699767656,7.13916585,2464.3,2464.0,0.16707904]
[1730699767852,3.08121585,2464.3,2463.9,0.16721576]
[1730699768091,4.05811,2464.2,2464.1,0.16694233]
[1730699768253,4.05811,2464.2,2464.0,0.16707904]
[1730699768454,3.08121585,2464.3,2464.1,0.16694233]
[1730699768853,7.13925585,2464.3,2464.1,0.16694233]
[1730699769189,4.05811,2464.2,2464.1,0.16694233]
[1730699772963,4.13932585,2464.2,2464.1,0.16694233]
[1730699775815,4.05811,2464.2,2464.1,0.16694233]
[1730699777270,4.13932585,2464.2,2464.1,0.16694233]
[1730699777478,6.02786244,2464.2,2464.1,0.16694233]
[1730699777871,4.05865,2463.9,2463.7,0.60920963]
[1730699778113,4.05865,2463.9,2463.7,0.3046048]
[1730699778301,4.05865,2463.9,2463.8,0.16733163]
[1730699778673,4.05865,2463.9,2463.7,0.3046048]
[1730699779018,4.05865,2463.9,2463.8,0.16733163]
[1730699779221,4.05865,2463.9,2463.7,0.3046048]
[1730699779383,4.05865,2463.9,2463.8,0.16733163]
[1730699779584,4.05865,2463.9,2463.7,0.3046048]
[1730699779812,4.05865,2463.9,2463.8,0.16733163]
[1730699780012,4.05865,2463.9,2463.7,0.3046048]
[1730699780184,4.05865,2463.9,2463.8,0.16733163]
[1730699780718,4.05865,2463.9,2463.7,0.3046048]
[1730699781017,8.11717,2464.0,2463.8,0.16733163]
[1730699781221,4.05858,2464.0,2463.7,0.3046048]
[1730699781395,4.05858,2464.0,2463.6,0.24804978]
[1730699781580,4.05858,2464.0,2463.7,0.46642079]
[1730699781780,8.11714,2464.0,2463.7,0.16189065]
[1730699784703,4.05856,2464.0,2463.7,0.16189065]
[1730699785635,8.11711,2464.0,2463.7,0.16189065]
[1730699786909,8.11707,2464.0,2463.7,0.16189065]
[1730699787225,4.05852,2464.0,2463.7,0.16189065]
[1730699788338,5.46255615,2464.2,2463.8,4.05873]
[1730699788339,1.40433615,2464.2,2463.8,4.05873]
[1730699788641,0.63553615,2464.2,2463.9,0.45493233]
[1730699789726,0.63553615,2464.2,2464.0,4.05832]
[1730699789926,0.63553615,2464.2,2463.9,6.25761371]
[1730699789927,0.91331585,2464.7,2464.2,4.35134]
[1730699790441,4.97068585,2464.7,2464.3,0.16108551]
[1730699790623,4.97068585,2464.7,2464.2,4.35134]
[1730699790828,4.05746,2464.6,2464.3,0.16108551]
[1730699791013,0.08121585,2464.5,2464.2,0.2933]
[1730699791215,0.08121585,2464.5,2464.3,0.16108551]
[1730699791410,0.08121585,2464.5,2464.2,0.99789452]
[1730699791411,0.08121585,2464.5,2464.2,0.2933]
[1730699791613,0.08121585,2464.5,2464.3,0.16108551]
[1730699791828,0.08121585,2464.5,2464.2,0.2933]
[1730699792029,0.08121585,2464.5,2464.3,0.16108551]
[1730699792243,0.08121585,2464.5,2464.2,0.2933]
[1730699792445,0.08121585,2464.5,2464.3,0.16108551]
[1730699792739,0.08121585,2464.5,2464.2,0.2933]
[1730699792906,0.08121585,2464.5,2464.4,0.16094883]
[1730699793108,0.08121585,2464.5,2464.3,0.16108551]
[1730699793302,0.08121585,2464.5,2464.4,0.16094883]
[1730699793733,4.05746,2464.6,2464.2,0.2933]
[1730699794011,4.05746,2464.6,2464.3,0.16108551]
[1730699794209,4.05746,2464.6,2464.2,0.2933]
[1730699794714,4.05746,2464.6,2464.3,0.16108551]
[1730699795102,0.08121585,2464.5,2464.2,0.2933]
[1730699795304,0.08121585,2464.5,2464.4,0.16094883]
[1730699795510,0.08121585,2464.5,2464.3,0.16108551]
[1730699795745,0.08121585,2464.5,2464.4,0.16094883]
[1730699796135,0.08121585,2464.5,2464.2,0.2933]
[1730699796338,0.08121585,2464.5,2464.4,0.16094883]
[1730699796553,0.08121585,2464.5,2464.3,0.16108551]
[1730699796721,4.05746,2464.6,2464.4,0.16094883]
[1730699797152,8.115,2464.6,2464.2,0.2933]
[1730699797337,4.05746,2464.6,2464.5,0.16081216]
[1730699797543,4.05746,2464.6,2464.2,0.2933]
[1730699797713,4.05746,2464.6,2464.5,0.16081216]
[1730699797915,5.02380744,2464.6,2464.2,0.2933]
[1730699798115,4.05746,2464.6,2464.5,0.16081216]
[1730699798353,4.05746,2464.6,2464.2,0.2933]
[1730699798558,4.05746,2464.6,2464.5,0.16081216]
[1730699798759,4.05746,2464.6,2464.2,0.2933]
[1730699798919,4.05746,2464.6,2464.5,0.16081216]
[1730699799437,4.05746,2464.6,2464.2,0.2933]
[1730699799617,0.08121585,2464.5,2464.3,0.16108551]
[1730699799817,0.08121585,2464.5,2464.2,0.2933]
[1730699800018,4.13885585,2464.5,2464.3,0.16108551]
[1730699800215,4.13885585,2464.5,2464.2,0.2933]
[1730699800458,4.13885585,2464.5,2464.3,0.16108551]
[1730699800624,4.13885585,2464.5,2464.2,0.2933]
[1730699800826,4.13885585,2464.5,2464.3,0.16108551]
[1730699801122,4.13885585,2464.5,2464.2,0.2933]
[1730699801318,0.08121585,2464.5,2464.4,0.16094883]
[1730699801525,4.88941,2464.7,2464.3,0.16108551]
[1730699801718,10.15255089,2464.7,2464.4,0.16094883]
[1730699801941,10.07133504,2464.7,2464.4,0.16094883]
[1730699802122,6.01389504,2464.7,2464.2,4.35136]
[1730699802320,6.01389504,2464.7,2464.5,0.16081216]
[1730699802321,4.97062585,2464.7,2464.5,0.16081216]
[1730699802623,9.02805585,2464.7,2464.6,0.16067551]
[1730699802822,8.94684,2464.7,2464.2,4.35136]
[1730699803052,4.13871585,2464.6,2464.3,0.16108551]
[1730699803224,4.13871585,2464.6,2464.2,0.2933]
[1730699803423,4.13871585,2464.6,2464.3,0.16108551]